[Event "Titled Tuesday Blitz November 9 2021"]
[White "Mammadov, Zaur"]
[Black "Khusnutdinov, Rustam"]
[WhiteFideId "13401033"]
[BlackFideId "13701703"]
[WhiteElo "2417"]
[BlackElo "2571"]
[Result "0-1"]
[Round "07"]
[TimeControl "180+1"]
[Date "2021.11.09"]
[WhiteClock "0:00:37"]
[BlackClock "0:01:44"]

1. e4 {[%clk 0:03:00]}  e6 {[%clk 0:02:57]} 2. d4 {[%clk 0:03:00]}  d5 {[%clk 0:02:57]} 3. e5 {[%clk 0:03:01]}  c5 {[%clk 0:02:57]} 4. c3 {[%clk 0:03:02]}  Nc6 {[%clk 0:02:58]} 5. Nf3 {[%clk 0:03:02]}  Bd7 {[%clk 0:02:58]} 6. Na3 {[%clk 0:03:03]}  cxd4 {[%clk 0:02:57]} 7. cxd4 {[%clk 0:03:02]}  Bxa3 {[%clk 0:02:58]} 8. bxa3 {[%clk 0:03:02]}  Nge7 {[%clk 0:02:59]} 9. Bd3 {[%clk 0:03:01]}  Na5 {[%clk 0:02:55]} 10. O-O {[%clk 0:03:01]}  a6 {[%clk 0:02:55]} 11. Bd2 {[%clk 0:03:01]}  Bb5 {[%clk 0:02:55]} 12. Bxb5+ {[%clk 0:02:53]}  axb5 {[%clk 0:02:56]} 13. Rb1 {[%clk 0:02:54]}  Nc4 {[%clk 0:02:54]} 14. Rxb5 {[%clk 0:02:51]}  b6 {[%clk 0:02:55]} 15. a4 {[%clk 0:02:44]}  O-O {[%clk 0:02:53]} 16. Bb4 {[%clk 0:02:43]}  Re8 {[%clk 0:02:51]} 17. Nd2 {[%clk 0:02:07]}  Nxd2 {[%clk 0:02:45]} 18. Bxd2 {[%clk 0:02:08]}  Nc6 {[%clk 0:02:43]} 19. Bc3 {[%clk 0:02:00]}  Ra6 {[%clk 0:02:42]} 20. f4 {[%clk 0:01:55]}  Ne7 {[%clk 0:02:29]} 21. Qd3 {[%clk 0:01:42]}  Rxa4 {[%clk 0:02:27]} 22. Rfb1 {[%clk 0:01:39]}  Rxa2 {[%clk 0:02:16]} 23. Rxb6 {[%clk 0:01:38]}  Nf5 {[%clk 0:02:17]} 24. Qh3 {[%clk 0:01:24]}  Ra3 {[%clk 0:02:14]} 25. R6b3 {[%clk 0:01:23]}  Qa8 {[%clk 0:02:12]} 26. g4 {[%clk 0:01:19]}  Rxb3 {[%clk 0:02:11]} 27. Rxb3 {[%clk 0:01:19]}  Qa4 {[%clk 0:02:09]} 28. Bb2 {[%clk 0:00:52]}  Nxd4 {[%clk 0:02:05]} 29. Bxd4 {[%clk 0:00:52]}  Qxd4+ {[%clk 0:02:05]} 30. Qe3 {[%clk 0:00:53]}  Qd1+ {[%clk 0:02:05]} 31. Kf2 {[%clk 0:00:53]}  Qxg4 {[%clk 0:02:05]} 32. Rb7 {[%clk 0:00:53]}  h6 {[%clk 0:02:03]} 33. Qg3 {[%clk 0:00:53]}  Qf5 {[%clk 0:02:00]} 34. Qe3 {[%clk 0:00:52]}  Rc8 {[%clk 0:01:59]} 35. Rb2 {[%clk 0:00:51]}  Rc2+ {[%clk 0:01:57]} 36. Rxc2 {[%clk 0:00:50]}  Qxc2+ {[%clk 0:01:58]} 37. Kg3 {[%clk 0:00:51]}  Qg6+ {[%clk 0:01:58]} 38. Kf2 {[%clk 0:00:50]}  Qf5 {[%clk 0:01:57]} 39. Kg3 {[%clk 0:00:50]}  g5 {[%clk 0:01:55]} 40. fxg5 {[%clk 0:00:48]}  hxg5 {[%clk 0:01:56]} 41. Qc3 {[%clk 0:00:43]}  Kg7 {[%clk 0:01:55]} 42. h3 {[%clk 0:00:42]}  Kg6 {[%clk 0:01:55]} 43. Qc7 {[%clk 0:00:41]}  d4 {[%clk 0:01:49]} 44. Qd6 {[%clk 0:00:39]}  d3 {[%clk 0:01:49]} 45. Kg2 {[%clk 0:00:37]}  Qe4+ {[%clk 0:01:47]} 46. Kg3 {[%clk 0:00:37]}  Qe3+ {[%clk 0:01:48]} 47. Kg2 {[%clk 0:00:37]}  d2 {[%clk 0:01:46]} 48. Qd8 {[%clk 0:00:36]}  Qe2+ {[%clk 0:01:44]} 49. Kg3 {[%clk 0:00:37]}  Qxe5+ {[%clk 0:01:44]} 0-1


[Site "https://www.chess.com"]

[Event "Titled Tuesday Blitz November 9 2021"]
[White "Nakamura, Hikaru"]
[Black "Lazavik, Denis"]
[WhiteFideId "2016192"]
[BlackFideId "13515110"]
[WhiteElo "2884"]
[BlackElo "2436"]
[Result "1/2-1/2"]
[Round "07"]
[TimeControl "180+1"]
[Date "2021.11.09"]
[WhiteClock "0:00:15"]
[BlackClock "0:00:13"]

1. e4 {[%clk 0:03:00]}  e5 {[%clk 0:02:59]} 2. Nf3 {[%clk 0:03:00]}  Nc6 {[%clk 0:03:00]} 3. Bb5 {[%clk 0:03:01]}  Nf6 {[%clk 0:03:00]} 4. d3 {[%clk 0:02:58]}  Bc5 {[%clk 0:03:00]} 5. Bxc6 {[%clk 0:02:57]}  dxc6 {[%clk 0:03:00]} 6. Nbd2 {[%clk 0:02:58]}  Nd7 {[%clk 0:02:48]} 7. c3 {[%clk 0:02:51]}  Qe7 {[%clk 0:02:35]} 8. O-O {[%clk 0:02:51]}  O-O {[%clk 0:02:30]} 9. Re1 {[%clk 0:02:50]}  Bd6 {[%clk 0:02:24]} 10. Nc4 {[%clk 0:02:48]}  Nb6 {[%clk 0:02:23]} 11. Ne3 {[%clk 0:02:43]}  c5 {[%clk 0:02:20]} 12. Nf5 {[%clk 0:02:30]}  Bxf5 {[%clk 0:02:19]} 13. exf5 {[%clk 0:02:31]}  f6 {[%clk 0:01:49]} 14. Nd2 {[%clk 0:02:25]}  Qf7 {[%clk 0:01:46]} 15. c4 {[%clk 0:02:11]}  Nc8 {[%clk 0:01:37]} 16. Re3 {[%clk 0:02:09]}  Rd8 {[%clk 0:01:33]} 17. Ne4 {[%clk 0:01:53]}  Bf8 {[%clk 0:01:32]} 18. Qf3 {[%clk 0:01:49]}  Nd6 {[%clk 0:01:23]} 19. Nc3 {[%clk 0:01:48]}  Re8 {[%clk 0:01:10]} 20. Re2 {[%clk 0:01:42]}  e4 {[%clk 0:01:00]} 21. Nxe4 {[%clk 0:01:28]}  Nxe4 {[%clk 0:00:59]} 22. dxe4 {[%clk 0:01:29]}  Qxc4 {[%clk 0:00:59]} 23. b3 {[%clk 0:01:28]}  Qf7 {[%clk 0:00:55]} 24. Bf4 {[%clk 0:01:27]}  Rad8 {[%clk 0:00:47]} 25. Qc3 {[%clk 0:01:27]}  Bd6 {[%clk 0:00:45]} 26. Bxd6 {[%clk 0:01:26]}  cxd6 {[%clk 0:00:46]} 27. Rd1 {[%clk 0:01:25]}  d5 {[%clk 0:00:40]} 28. Qxc5 {[%clk 0:01:17]}  dxe4 {[%clk 0:00:40]} 29. Rxd8 {[%clk 0:01:05]}  Rxd8 {[%clk 0:00:40]} 30. g4 {[%clk 0:01:05]}  b6 {[%clk 0:00:39]} 31. Qc6 {[%clk 0:01:04]}  h5 {[%clk 0:00:37]} 32. h3 {[%clk 0:01:04]}  hxg4 {[%clk 0:00:36]} 33. hxg4 {[%clk 0:01:04]}  Rd4 {[%clk 0:00:25]} 34. Rxe4 {[%clk 0:00:28]}  Rxe4 {[%clk 0:00:25]} 35. Qxe4 {[%clk 0:00:29]}  Kh7 {[%clk 0:00:25]} 36. Qh1+ {[%clk 0:00:28]}  Kg8 {[%clk 0:00:25]} 37. Qa8+ {[%clk 0:00:29]}  Kh7 {[%clk 0:00:26]} 38. Qd8 {[%clk 0:00:29]}  Qb7 {[%clk 0:00:23]} 39. Qd3 {[%clk 0:00:29]}  Qc7 {[%clk 0:00:22]} 40. Kg2 {[%clk 0:00:27]}  Qe5 {[%clk 0:00:20]} 41. Qe3 {[%clk 0:00:24]}  Qd5+ {[%clk 0:00:20]} 42. Qf3 {[%clk 0:00:25]}  Qd2 {[%clk 0:00:19]} 43. a4 {[%clk 0:00:21]}  Qd4 {[%clk 0:00:19]} 44. Kg3 {[%clk 0:00:20]}  Qd6+ {[%clk 0:00:19]} 45. Kg2 {[%clk 0:00:19]}  Qd4 {[%clk 0:00:19]} 46. Qh3+ {[%clk 0:00:19]}  Kg8 {[%clk 0:00:19]} 47. Qg3 {[%clk 0:00:20]}  Kh7 {[%clk 0:00:19]} 48. Kh3 {[%clk 0:00:18]}  Qd5 {[%clk 0:00:17]} 49. Qe3 {[%clk 0:00:16]}  Qh1+ {[%clk 0:00:15]} 50. Kg3 {[%clk 0:00:17]}  Qd5 {[%clk 0:00:15]} 51. Kf4 {[%clk 0:00:15]}  Qd6+ {[%clk 0:00:15]} 52. Ke4 {[%clk 0:00:16]}  Qc6+ {[%clk 0:00:16]} 53. Kd3 {[%clk 0:00:15]}  Qd5+ {[%clk 0:00:16]} 54. Kc3 {[%clk 0:00:16]}  Qc6+ {[%clk 0:00:15]} 55. Kb2 {[%clk 0:00:17]}  Qd5 {[%clk 0:00:14]} 56. Qh3+ {[%clk 0:00:16]}  Kg8 {[%clk 0:00:14]} 57. Qe3 {[%clk 0:00:17]}  Kh7 {[%clk 0:00:14]} 58. Kc3 {[%clk 0:00:14]}  Qc6+ {[%clk 0:00:14]} 59. Kd3 {[%clk 0:00:14]}  Qd5+ {[%clk 0:00:14]} 60. Kc2 {[%clk 0:00:15]}  Qc6+ {[%clk 0:00:14]} 61. Kb1 {[%clk 0:00:15]}  Qh1+ {[%clk 0:00:13]} 62. Kb2 {[%clk 0:00:15]}  Qd5 {[%clk 0:00:13]} 1/2-1/2


[Site "https://www.chess.com"]

[Event "Titled Tuesday Blitz November 9 2021"]
[White "Nozdrachev, Leonid"]
[Black "Wagner, Dennis"]
[WhiteFideId "24113433"]
[BlackFideId "24650684"]
[WhiteElo "2124"]
[BlackElo "2355"]
[Result "1-0"]
[Round "07"]
[TimeControl "180+1"]
[Date "2021.11.09"]
[WhiteClock "0:00:50"]
[BlackClock "0:00:21"]

1. e4 {[%clk 0:02:40]}  c5 {[%clk 0:02:59]} 2. c3 {[%clk 0:02:39]}  d5 {[%clk 0:02:58]} 3. exd5 {[%clk 0:02:39]}  Qxd5 {[%clk 0:02:59]} 4. d4 {[%clk 0:02:39]}  Nf6 {[%clk 0:02:58]} 5. Nf3 {[%clk 0:02:39]}  e6 {[%clk 0:02:59]} 6. Bd3 {[%clk 0:02:38]}  cxd4 {[%clk 0:02:56]} 7. cxd4 {[%clk 0:02:39]}  Nc6 {[%clk 0:02:56]} 8. Nc3 {[%clk 0:02:38]}  Bb4 {[%clk 0:02:55]} 9. O-O {[%clk 0:02:38]}  Qa5 {[%clk 0:02:54]} 10. Bg5 {[%clk 0:02:35]}  Bxc3 {[%clk 0:02:35]} 11. bxc3 {[%clk 0:02:36]}  Qxc3 {[%clk 0:02:36]} 12. Rc1 {[%clk 0:02:25]}  Qa5 {[%clk 0:02:34]} 13. Bxf6 {[%clk 0:02:19]}  gxf6 {[%clk 0:02:33]} 14. Re1 {[%clk 0:02:17]}  Bd7 {[%clk 0:02:24]} 15. Rc5 {[%clk 0:02:05]}  Qa3 {[%clk 0:02:24]} 16. Rf5 {[%clk 0:01:36]}  O-O-O {[%clk 0:01:23]} 17. Rxf6 {[%clk 0:01:35]}  Qxa2 {[%clk 0:01:17]} 18. Rxf7 {[%clk 0:01:31]}  e5 {[%clk 0:01:05]} 19. Rxd7 {[%clk 0:01:29]}  Rxd7 {[%clk 0:01:06]} 20. Bf5 {[%clk 0:01:27]}  exd4 {[%clk 0:00:56]} 21. Bxd7+ {[%clk 0:01:13]}  Kxd7 {[%clk 0:00:57]} 22. Nxd4 {[%clk 0:01:14]}  Kc7 {[%clk 0:00:31]} 23. Nxc6 {[%clk 0:01:02]}  bxc6 {[%clk 0:00:32]} 24. Re7+ {[%clk 0:00:59]}  Kb6 {[%clk 0:00:32]} 25. Qd4+ {[%clk 0:00:56]}  c5 {[%clk 0:00:30]} 26. Qd6+ {[%clk 0:00:52]}  Kb5 {[%clk 0:00:28]} 27. Rb7+ {[%clk 0:00:52]}  Kc4 {[%clk 0:00:22]} 28. Qe6+ {[%clk 0:00:52]}  Kc3 {[%clk 0:00:22]} 29. Qxa2 {[%clk 0:00:53]}  Rd8 {[%clk 0:00:21]} 30. Rb3+ {[%clk 0:00:50]}  Kc4 {[%clk 0:00:21]} 31. Rb8+ {[%clk 0:00:50]} 1-0


[Site "https://www.chess.com"]

[Event "Titled Tuesday Blitz November 9 2021"]
[White "Piesik, Piotr"]
[Black "Moroni, Luca Jr"]
[WhiteFideId "1136194"]
[BlackFideId "865834"]
[WhiteElo "2336"]
[BlackElo "2491"]
[Result "1-0"]
[Round "07"]
[TimeControl "180+1"]
[Date "2021.11.09"]
[WhiteClock "0:00:48"]
[BlackClock "0:00:04"]

1. Nf3 {[%clk 0:03:00]}  g6 {[%clk 0:02:59]} 2. g3 {[%clk 0:03:00]}  Bg7 {[%clk 0:03:00]} 3. d4 {[%clk 0:03:01]}  d6 {[%clk 0:03:00]} 4. Bg2 {[%clk 0:03:01]}  Bd7 {[%clk 0:03:00]} 5. O-O {[%clk 0:03:01]}  Qc8 {[%clk 0:02:59]} 6. e4 {[%clk 0:03:02]}  Bh3 {[%clk 0:02:55]} 7. c3 {[%clk 0:03:02]}  Nc6 {[%clk 0:02:52]} 8. Qb3 {[%clk 0:02:58]}  Bxg2 {[%clk 0:02:47]} 9. Kxg2 {[%clk 0:02:59]}  e6 {[%clk 0:02:47]} 10. d5 {[%clk 0:02:57]}  Nd8 {[%clk 0:02:38]} 11. Bg5 {[%clk 0:02:47]}  e5 {[%clk 0:02:34]} 12. c4 {[%clk 0:02:43]}  f6 {[%clk 0:02:28]} 13. Be3 {[%clk 0:02:42]}  Nf7 {[%clk 0:02:28]} 14. c5 {[%clk 0:02:37]}  f5 {[%clk 0:02:28]} 15. Qa4+ {[%clk 0:02:35]}  Kf8 {[%clk 0:02:23]} 16. Nc3 {[%clk 0:02:31]}  Nf6 {[%clk 0:02:19]} 17. cxd6 {[%clk 0:02:26]}  cxd6 {[%clk 0:02:18]} 18. Rac1 {[%clk 0:02:25]}  Qd8 {[%clk 0:02:17]} 19. Ng5 {[%clk 0:02:21]}  Nxg5 {[%clk 0:02:14]} 20. Bxg5 {[%clk 0:02:22]}  f4 {[%clk 0:02:11]} 21. f3 {[%clk 0:02:16]}  h6 {[%clk 0:02:00]} 22. Bxf6 {[%clk 0:02:16]}  Bxf6 {[%clk 0:02:01]} 23. g4 {[%clk 0:02:16]}  h5 {[%clk 0:02:01]} 24. h3 {[%clk 0:02:10]}  a6 {[%clk 0:02:01]} 25. Ne2 {[%clk 0:02:07]}  Kg7 {[%clk 0:01:57]} 26. Rc3 {[%clk 0:02:05]}  Rc8 {[%clk 0:01:52]} 27. Rfc1 {[%clk 0:02:02]}  Rxc3 {[%clk 0:01:50]} 28. Rxc3 {[%clk 0:02:01]}  hxg4 {[%clk 0:01:50]} 29. hxg4 {[%clk 0:02:00]}  Bh4 {[%clk 0:00:58]} 30. Qc2 {[%clk 0:01:47]}  Bg3 {[%clk 0:00:52]} 31. Rc7+ {[%clk 0:01:47]}  Kf6 {[%clk 0:00:49]} 32. Nxg3 {[%clk 0:01:44]}  fxg3 {[%clk 0:00:50]} 33. Kxg3 {[%clk 0:01:45]}  Qf8 {[%clk 0:00:24]} 34. Rd7 {[%clk 0:01:18]}  Kg5 {[%clk 0:00:15]} 35. Qc1+ {[%clk 0:01:13]}  Qf4+ {[%clk 0:00:16]} 36. Qxf4+ {[%clk 0:01:13]}  exf4+ {[%clk 0:00:17]} 37. Kg2 {[%clk 0:01:13]}  Rc8 {[%clk 0:00:17]} 38. Rxd6 {[%clk 0:01:10]}  Rc2+ {[%clk 0:00:17]} 39. Kf1 {[%clk 0:01:10]}  Rxb2 {[%clk 0:00:10]} 40. e5 {[%clk 0:01:10]}  Rxa2 {[%clk 0:00:10]} 41. e6 {[%clk 0:01:10]}  Kf6 {[%clk 0:00:07]} 42. Rd7 {[%clk 0:01:10]}  Ra3 {[%clk 0:00:04]} 43. Rf7+ {[%clk 0:01:03]}  Kg5 {[%clk 0:00:05]} 44. e7 {[%clk 0:00:58]}  Rxf3+ {[%clk 0:00:04]} 45. Kg2 {[%clk 0:00:56]}  Re3 {[%clk 0:00:05]} 46. d6 {[%clk 0:00:56]}  Kxg4 {[%clk 0:00:05]} 47. d7 {[%clk 0:00:55]}  Re2+ {[%clk 0:00:05]} 48. Kf1 {[%clk 0:00:55]}  Ra2 {[%clk 0:00:05]} 49. e8=Q {[%clk 0:00:52]}  Kg3 {[%clk 0:00:05]} 50. Qe1+ {[%clk 0:00:51]}  Kf3 {[%clk 0:00:04]} 51. Qd1+ {[%clk 0:00:48]}  Kg3 {[%clk 0:00:04]} 52. Qb3+ {[%clk 0:00:48]} 1-0


[Site "https://www.chess.com"]

[Event "Titled Tuesday Blitz November 9 2021"]
[White "Rozman, Levy"]
[Black "Svane, Rasmus"]
[WhiteFideId "2039877"]
[BlackFideId "4657101"]
[WhiteElo "2376"]
[BlackElo "2643"]
[Result "1/2-1/2"]
[Round "07"]
[TimeControl "180+1"]
[Date "2021.11.09"]
[WhiteClock "0:00:03"]
[BlackClock "0:00:12"]

1. d4 {[%clk 0:03:00]}  d5 {[%clk 0:02:57]} 2. c4 {[%clk 0:03:00]}  e6 {[%clk 0:02:56]} 3. Nf3 {[%clk 0:03:00]}  a6 {[%clk 0:02:56]} 4. cxd5 {[%clk 0:02:56]}  exd5 {[%clk 0:02:57]} 5. Nc3 {[%clk 0:02:56]}  Nf6 {[%clk 0:02:57]} 6. Bg5 {[%clk 0:02:56]}  Be6 {[%clk 0:02:57]} 7. e3 {[%clk 0:02:55]}  Nbd7 {[%clk 0:02:57]} 8. Bd3 {[%clk 0:02:56]}  Bd6 {[%clk 0:02:57]} 9. O-O {[%clk 0:02:55]}  c6 {[%clk 0:02:57]} 10. Rc1 {[%clk 0:02:56]}  Qc7 {[%clk 0:02:55]} 11. Ne2 {[%clk 0:02:42]}  Bg4 {[%clk 0:02:50]} 12. Bf4 {[%clk 0:02:31]}  Bxf3 {[%clk 0:02:38]} 13. gxf3 {[%clk 0:02:32]}  O-O {[%clk 0:02:39]} 14. Kh1 {[%clk 0:02:28]}  Bxf4 {[%clk 0:02:34]} 15. Nxf4 {[%clk 0:02:28]}  Qd6 {[%clk 0:02:35]} 16. Rg1 {[%clk 0:02:24]}  Rac8 {[%clk 0:02:22]} 17. Qb3 {[%clk 0:02:14]}  b5 {[%clk 0:02:19]} 18. Bf5 {[%clk 0:02:03]}  Rc7 {[%clk 0:02:10]} 19. Nd3 {[%clk 0:01:57]}  c5 {[%clk 0:02:06]} 20. dxc5 {[%clk 0:01:49]}  Qe7 {[%clk 0:01:26]} 21. Bxd7 {[%clk 0:01:40]}  Qxd7 {[%clk 0:01:20]} 22. Nf4 {[%clk 0:01:13]}  Rfc8 {[%clk 0:01:18]} 23. Qb4 {[%clk 0:01:08]}  Qe7 {[%clk 0:01:01]} 24. Qd4 {[%clk 0:00:51]}  Rxc5 {[%clk 0:00:57]} 25. Rxc5 {[%clk 0:00:50]}  Rxc5 {[%clk 0:00:58]} 26. b4 {[%clk 0:00:51]}  Rc6 {[%clk 0:00:40]} 27. Nxd5 {[%clk 0:00:48]}  Qd6 {[%clk 0:00:39]} 28. Nxf6+ {[%clk 0:00:36]}  Qxf6 {[%clk 0:00:40]} 29. Qxf6 {[%clk 0:00:29]}  Rxf6 {[%clk 0:00:40]} 30. Rc1 {[%clk 0:00:26]}  g6 {[%clk 0:00:38]} 31. Kg2 {[%clk 0:00:25]}  Rd6 {[%clk 0:00:38]} 32. Rc8+ {[%clk 0:00:18]}  Kg7 {[%clk 0:00:38]} 33. Ra8 {[%clk 0:00:18]}  g5 {[%clk 0:00:31]} 34. Kg3 {[%clk 0:00:16]}  Rc6 {[%clk 0:00:29]} 35. f4 {[%clk 0:00:12]}  gxf4+ {[%clk 0:00:30]} 36. Kxf4 {[%clk 0:00:13]}  Rc4+ {[%clk 0:00:30]} 37. e4 {[%clk 0:00:12]}  Rxb4 {[%clk 0:00:31]} 38. Rxa6 {[%clk 0:00:13]}  Rb2 {[%clk 0:00:30]} 39. Kg3 {[%clk 0:00:12]}  b4 {[%clk 0:00:30]} 40. Rb6 {[%clk 0:00:10]}  Rxa2 {[%clk 0:00:27]} 41. Rxb4 {[%clk 0:00:09]}  Ra3+ {[%clk 0:00:16]} 42. f3 {[%clk 0:00:09]}  Ra2 {[%clk 0:00:17]} 43. h4 {[%clk 0:00:09]}  Ra1 {[%clk 0:00:17]} 44. Rb5 {[%clk 0:00:09]}  Rg1+ {[%clk 0:00:17]} 45. Kh2 {[%clk 0:00:07]}  Rf1 {[%clk 0:00:16]} 46. Kg2 {[%clk 0:00:08]}  Rd1 {[%clk 0:00:17]} 47. Rg5+ {[%clk 0:00:08]}  Kf6 {[%clk 0:00:17]} 48. Kg3 {[%clk 0:00:07]}  h6 {[%clk 0:00:16]} 49. Rf5+ {[%clk 0:00:07]}  Kg6 {[%clk 0:00:16]} 50. h5+ {[%clk 0:00:06]}  Kg7 {[%clk 0:00:16]} 51. Kf4 {[%clk 0:00:06]}  Rh1 {[%clk 0:00:16]} 52. Ke3 {[%clk 0:00:05]}  Ra1 {[%clk 0:00:16]} 53. Kf4 {[%clk 0:00:04]}  Rh1 {[%clk 0:00:16]} 54. Kg4 {[%clk 0:00:03]}  Rg1+ {[%clk 0:00:17]} 55. Kf4 {[%clk 0:00:03]}  Ra1 {[%clk 0:00:17]} 56. Ke3 {[%clk 0:00:03]}  Ra3+ {[%clk 0:00:17]} 57. Kd4 {[%clk 0:00:04]}  Ra1 {[%clk 0:00:18]} 58. f4 {[%clk 0:00:04]}  Ra4+ {[%clk 0:00:17]} 59. Ke3 {[%clk 0:00:04]}  Ra3+ {[%clk 0:00:17]} 60. Ke2 {[%clk 0:00:04]}  Ra2+ {[%clk 0:00:14]} 61. Kf3 {[%clk 0:00:04]}  Ra3+ {[%clk 0:00:15]} 62. Kg4 {[%clk 0:00:05]}  Ra1 {[%clk 0:00:16]} 63. Rb5 {[%clk 0:00:03]}  Rg1+ {[%clk 0:00:15]} 64. Kf3 {[%clk 0:00:03]}  Rf1+ {[%clk 0:00:15]} 65. Kg3 {[%clk 0:00:04]}  Rg1+ {[%clk 0:00:15]} 66. Kf2 {[%clk 0:00:03]}  Rh1 {[%clk 0:00:16]} 67. Kg2 {[%clk 0:00:02]}  Rh4 {[%clk 0:00:14]} 68. Kg3 {[%clk 0:00:02]}  Rh1 {[%clk 0:00:14]} 69. Rd5 {[%clk 0:00:02]}  Rg1+ {[%clk 0:00:12]} 70. Kf2 {[%clk 0:00:02]}  Rh1 {[%clk 0:00:12]} 71. Kg2 {[%clk 0:00:03]}  Rh4 {[%clk 0:00:12]} 72. Kg3 {[%clk 0:00:03]}  Rh1 {[%clk 0:00:12]} 73. Kg2 {[%clk 0:00:03]}  Re1 {[%clk 0:00:12]} 74. Kf3 {[%clk 0:00:03]}  Rf1+ {[%clk 0:00:12]} 75. Kg4 {[%clk 0:00:03]}  Rg1+ {[%clk 0:00:12]} 76. Kh3 {[%clk 0:00:03]}  Rh1+ {[%clk 0:00:12]} 77. Kg2 {[%clk 0:00:03]} 1/2-1/2


[Site "https://www.chess.com"]

[Event "Titled Tuesday Blitz November 9 2021"]
[White "Sorensen, Hampus"]
[Black "Hakobyan, Aram"]
[WhiteFideId "8703884"]
[BlackFideId "13306677"]
[WhiteElo "2213"]
[BlackElo "2557"]
[Result "0-1"]
[Round "07"]
[TimeControl "180+1"]
[Date "2021.11.09"]
[WhiteClock "0:00:12"]
[BlackClock "0:01:36"]

1. d4 {[%clk 0:02:55]}  e6 {[%clk 0:02:54]} 2. c4 {[%clk 0:02:53]}  f5 {[%clk 0:02:54]} 3. Nf3 {[%clk 0:02:53]}  Nf6 {[%clk 0:02:54]} 4. g3 {[%clk 0:02:52]}  Be7 {[%clk 0:02:54]} 5. Bg2 {[%clk 0:02:52]}  d5 {[%clk 0:02:55]} 6. O-O {[%clk 0:02:51]}  Ne4 {[%clk 0:02:56]} 7. b3 {[%clk 0:02:49]}  Nc6 {[%clk 0:02:54]} 8. e3 {[%clk 0:02:46]}  h5 {[%clk 0:02:54]} 9. Ba3 {[%clk 0:02:10]}  Bf6 {[%clk 0:02:50]} 10. Nbd2 {[%clk 0:02:07]}  h4 {[%clk 0:02:50]} 11. Nxe4 {[%clk 0:02:02]}  dxe4 {[%clk 0:02:45]} 12. Nd2 {[%clk 0:01:57]}  hxg3 {[%clk 0:02:44]} 13. fxg3 {[%clk 0:01:53]}  Bg5 {[%clk 0:02:34]} 14. Re1 {[%clk 0:01:53]}  Nxd4 {[%clk 0:02:34]} 15. Nxe4 {[%clk 0:01:40]}  Nc6 {[%clk 0:02:00]} 16. Qxd8+ {[%clk 0:00:56]}  Bxd8 {[%clk 0:01:59]} 17. Nd2 {[%clk 0:00:55]}  Bd7 {[%clk 0:01:58]} 18. Rad1 {[%clk 0:00:54]}  Bf6 {[%clk 0:01:57]} 19. e4 {[%clk 0:00:52]}  O-O-O {[%clk 0:01:57]} 20. exf5 {[%clk 0:00:51]}  exf5 {[%clk 0:01:58]} 21. Nf3 {[%clk 0:00:51]}  Rhe8 {[%clk 0:01:55]} 22. Rxe8 {[%clk 0:00:49]}  Rxe8 {[%clk 0:01:56]} 23. Kf2 {[%clk 0:00:49]}  g5 {[%clk 0:01:52]} 24. h4 {[%clk 0:00:43]}  g4 {[%clk 0:01:48]} 25. Ng5 {[%clk 0:00:42]}  Bd4+ {[%clk 0:01:46]} 26. Kf1 {[%clk 0:00:42]}  Be5 {[%clk 0:01:47]} 27. Rd3 {[%clk 0:00:39]}  f4 {[%clk 0:01:40]} 28. gxf4 {[%clk 0:00:37]}  Bxf4 {[%clk 0:01:41]} 29. Bb2 {[%clk 0:00:27]}  Bf5 {[%clk 0:01:40]} 30. Rd5 {[%clk 0:00:26]}  Bb1 {[%clk 0:01:36]} 31. a3 {[%clk 0:00:24]}  Bg3 {[%clk 0:01:35]} 32. Bc3 {[%clk 0:00:20]}  Bxh4 {[%clk 0:01:36]} 33. Nh7 {[%clk 0:00:12]}  Bxh7 {[%clk 0:01:35]} 34. Rh5 {[%clk 0:00:12]}  Bd3+ {[%clk 0:01:36]} 0-1


[Site "https://www.chess.com"]

[Event "Titled Tuesday Blitz November 9 2021"]
[White "Xiong, Jeffery"]
[Black "Adly, Ahmed"]
[WhiteFideId "2047640"]
[BlackFideId "10601619"]
[WhiteElo "2699"]
[BlackElo "2683"]
[Result "1-0"]
[Round "07"]
[TimeControl "180+1"]
[Date "2021.11.09"]
[WhiteClock "0:00:01"]
[BlackClock "0:00:04"]

1. d4 {[%clk 0:03:00]}  Nf6 {[%clk 0:02:58]} 2. Nf3 {[%clk 0:03:01]}  e6 {[%clk 0:02:57]} 3. Bf4 {[%clk 0:03:01]}  b6 {[%clk 0:02:53]} 4. e3 {[%clk 0:03:02]}  Bb7 {[%clk 0:02:53]} 5. Bd3 {[%clk 0:03:02]}  d6 {[%clk 0:02:53]} 6. h4 {[%clk 0:02:59]}  Nbd7 {[%clk 0:02:53]} 7. Nc3 {[%clk 0:02:58]}  a5 {[%clk 0:02:52]} 8. Qe2 {[%clk 0:02:57]}  g6 {[%clk 0:02:43]} 9. e4 {[%clk 0:02:43]}  Bg7 {[%clk 0:02:41]} 10. O-O-O {[%clk 0:02:43]}  a4 {[%clk 0:02:40]} 11. a3 {[%clk 0:02:43]}  d5 {[%clk 0:02:38]} 12. e5 {[%clk 0:02:42]}  Ng8 {[%clk 0:02:37]} 13. h5 {[%clk 0:02:42]}  Ne7 {[%clk 0:02:32]} 14. hxg6 {[%clk 0:02:42]}  hxg6 {[%clk 0:02:28]} 15. Rxh8+ {[%clk 0:02:43]}  Bxh8 {[%clk 0:02:29]} 16. Rh1 {[%clk 0:02:43]}  Bg7 {[%clk 0:02:29]} 17. Rh7 {[%clk 0:02:42]}  Kf8 {[%clk 0:02:18]} 18. Ng5 {[%clk 0:02:38]}  Kg8 {[%clk 0:02:15]} 19. Qf3 {[%clk 0:02:31]}  Nf8 {[%clk 0:02:05]} 20. Nxf7 {[%clk 0:02:23]}  Qe8 {[%clk 0:02:00]} 21. Rxg7+ {[%clk 0:02:14]}  Kxg7 {[%clk 0:02:01]} 22. Bh6+ {[%clk 0:02:14]}  Kg8 {[%clk 0:02:00]} 23. Ng5 {[%clk 0:02:13]}  Nf5 {[%clk 0:01:56]} 24. Bxf5 {[%clk 0:02:05]}  gxf5 {[%clk 0:01:45]} 25. Bxf8 {[%clk 0:02:03]}  Kxf8 {[%clk 0:01:39]} 26. Qh3 {[%clk 0:02:01]}  Qg6 {[%clk 0:01:38]} 27. Qh4 {[%clk 0:01:53]}  Ke8 {[%clk 0:01:31]} 28. Ne2 {[%clk 0:01:50]}  Kd7 {[%clk 0:01:17]} 29. Nf4 {[%clk 0:01:50]}  Qg8 {[%clk 0:01:14]} 30. Qh6 {[%clk 0:01:39]}  Re8 {[%clk 0:00:54]} 31. Nh5 {[%clk 0:01:40]}  Kc8 {[%clk 0:00:44]} 32. Nf6 {[%clk 0:01:38]}  Qh8 {[%clk 0:00:41]} 33. Qxh8 {[%clk 0:01:34]}  Rxh8 {[%clk 0:00:41]} 34. Nxe6 {[%clk 0:01:35]}  Rh1+ {[%clk 0:00:31]} 35. Kd2 {[%clk 0:01:35]}  Rb1 {[%clk 0:00:25]} 36. Ng7 {[%clk 0:01:34]}  Rxb2 {[%clk 0:00:23]} 37. e6 {[%clk 0:01:35]}  Ra2 {[%clk 0:00:20]} 38. Nxf5 {[%clk 0:01:30]}  Rxa3 {[%clk 0:00:18]} 39. g4 {[%clk 0:01:13]}  Ra1 {[%clk 0:00:18]} 40. g5 {[%clk 0:01:13]}  Rg1 {[%clk 0:00:17]} 41. Ng3 {[%clk 0:01:13]}  a3 {[%clk 0:00:12]} 42. g6 {[%clk 0:01:13]}  a2 {[%clk 0:00:12]} 43. g7 {[%clk 0:01:13]}  Bc6 {[%clk 0:00:12]} 44. g8=Q+ {[%clk 0:01:06]}  Kb7 {[%clk 0:00:10]} 45. Nd7 {[%clk 0:00:19]}  a1=Q {[%clk 0:00:10]} 46. Qb8+ {[%clk 0:00:20]}  Ka6 {[%clk 0:00:07]} 47. Ne2 {[%clk 0:00:21]}  Rd1+ {[%clk 0:00:04]} 48. Ke3 {[%clk 0:00:21]}  Qa3+ {[%clk 0:00:04]} 49. c3 {[%clk 0:00:21]}  Qd6 {[%clk 0:00:05]} 50. Nf8 {[%clk 0:00:17]}  Qe7 {[%clk 0:00:03]} 51. Nf4 {[%clk 0:00:13]}  Re1+ {[%clk 0:00:03]} 52. Kd2 {[%clk 0:00:14]}  Re4 {[%clk 0:00:04]} 53. Nd3 {[%clk 0:00:14]}  Qg5+ {[%clk 0:00:04]} 54. Kc2 {[%clk 0:00:14]}  Re2+ {[%clk 0:00:03]} 55. Kb3 {[%clk 0:00:14]}  Qd2 {[%clk 0:00:04]} 56. Nd7 {[%clk 0:00:01]} 1-0


[Site "https://www.chess.com"]